{"text_format":"1","workbook":"xlsx","n_sheets":4,"sheets":["Tabla y Gráficos","Calificaciones","Tareas","Examen"],"not_rendered":{"charts":6,"images":1,"macros":1,"external_links":1,"defined_names":6,"comments":0,"pivot_tables":3},"unopened":[],"bounds":{"document_bytes":16777216,"sheet_cells":100000,"rows_first":2000,"rows_last":500,"rows_between":2000,"halvings":0,"cell_chars":16384,"cell_head_chars":4096},"cells_cut":0,"cells_raw":0,"read":"whole","date_system":"1900"}

{"sheet":"Tabla y Gráficos","index":0,"n_rows":99,"n_cols":16,"rows_kept":99,"cut":false,"hidden":false,"merged":[]}
[]
[]
[]
[null,"Nombre:","Gerardo A. Flores Ibarra"]
[null,"Fecha:","12 de Julio de 2025"]
[null,"Ejercicio:","Proyecto Final"]
[]
[]
[null,"Objetivo: Dar seguimiento del avance en las tareas de los alumnos de 6º semestre y con la calificación del examen obtener su calificación final."]
[null,"Instrucciones: Al seleccionar el No. del Alumno podemos ver de quien se trata y sus calificaciones, así como las gráficas correspondientes."]
[null,"En la parte de abajo podemos ver los avances del grupo en cuanto a las tareas realizadas"]
[null,"Tambíén podemos ver que alumnos terminaro primero la tarea 1 o la 2 o la 3"]
[null,"Y por medio de MACROS podemos preparar una nueva tabla sin datos para capturar nuevas tareas o deshacer la copia realizada"]
[]
["No.","Nombre del Alumno","TAREA 1","TAREA 2","TAREA 3","TAREA 4","TAREA 5","TAREA 6","TAREA 7","TAREA 8","TAREA 9","TAREA 10","TAREA 11","Tareas","Examen","Calificación"]
[10,{"$f":"VLOOKUP($A$16,Tabla1[],2)","v":"MORALES HERNANDEZ RODRIGO"},{"$f":"VLOOKUP($A$16,Tabla1[],3)","v":75},{"$f":"VLOOKUP($A$16,Tabla1[],4)","v":75},{"$f":"VLOOKUP($A$16,Tabla1[],5)","v":100},{"$f":"VLOOKUP($A$16,Tabla1[],6)","v":60},{"$f":"VLOOKUP($A$16,Tabla1[],7)","v":60},{"$f":"VLOOKUP($A$16,Tabla1[],8)","v":95},{"$f":"VLOOKUP($A$16,Tabla1[],9)","v":65},{"$f":"VLOOKUP($A$16,Tabla1[],10)","v":100},{"$f":"VLOOKUP($A$16,Tabla1[],11)","v":60},{"$f":"VLOOKUP($A$16,Tabla1[],12)","v":60},{"$f":"VLOOKUP($A$16,Tabla1[],13)","v":60},{"$f":"VLOOKUP($A$16,Tabla1[],14)","v":3.6818181818181821},{"$f":"VLOOKUP($A$16,Tabla1[],15)","v":3},{"$f":"VLOOKUP($A$16,Tabla1[],16)","v":6.6818181818181817}]
[]
[]
[]
[]
[]
[]
[]
[]
[]
[]
[]
[]
[]
[]
[]
[]
[]
[]
[]
[]
[]
[]
[]
[]
[]
["No.","Nombre del Alumno","Ejercicio: Extiende sucesiones aritméticas","Ejercicio: Usa fórmulas de sucesiones aritméticas","Ejercicio: Fórmulas recursivas para sucesiones aritméticas","Ejercicio: Fórmulas explícitas para sucesiones aritméticas","Ejercicio: Extiende sucesiones geométricas","Ejercicio: Extiende sucesiones geométricas: negativas y fracciones","Ejercicio: Usa fórmulas de sucesiones geométricas","Ejercicio: La pendiente a partir de una gráfica","Ejercicio: Gráficar a partir de la pendiente","Ejercicio: Pendiente en una tabla","Ejercicio: La pendiente a partir de dos puntos","Columna1","Columna2","Columna3"]
[null,null,"Fecha de entrega: 2025-06-27","Fecha de entrega: 2025-06-27","Fecha de entrega: 2025-06-27","Fecha de entrega: 2025-06-27","Fecha de entrega: 2025-06-27","Fecha de entrega: 2025-06-27","Fecha de entrega: 2025-06-27","Fecha de entrega: 2025-07-03","Fecha de entrega: 2025-07-03","Fecha de entrega: 2025-07-03","Fecha de entrega: 2025-07-03","Promedio de las tareas 50%","Calificación del examen 50%","Calificación Final"]
[1,"ALVAREZ AREVALO ANGEL SANTIAGO",100,90,100,70,{"$f":"'[1]MAT. APLICADAS (INTERSEMESTRAL '!T15","v":100},80,95,100,60,70,100,{"$f":"AVERAGE(C44:M44)/10/2","v":4.3863636363636367},3.5,{"$f":"N44+O44","v":7.8863636363636367}]
[2,"CABRALES DE LEON MARIA JOCELYN",90,50,100,90,60,100,35,100,95,100,90,{"$f":"AVERAGE(C45:M45)/10/2","v":4.1363636363636367},3,{"$f":"N45+O45","v":7.1363636363636367}]
[3,"CHAVEZ URISTA YAHIR",100,100,90,100,85,70,100,90,75,50,100,4.3636363636363633,2,6.3636363636363633]
[4,"CISNEROS ROJAS ANGEL EMMANUEL",50,60,100,100,90,100,100,90,75,80,90,4.25,3,7.25]
[5,"GARCIA RODRIGUEZ DIEGO CLEMENTINO",75,80,90,50,100,50,90,100,80,70,50,3.7954545454545454,1,4.795454545454545]
[6,"GONZALEZ SANCHEZ ESCARLETH GUADALUPE",100,90,50,60,90,60,100,90,80,50,60,3.7727272727272725,2.5,6.2727272727272725]
[7,"GUTIERREZ ZAPATA KIMBERLY JANNET",90,100,100,100,75,75,70,50,100,65,50,3.9772727272727275,3.5,7.4772727272727275]
[8,"HERNANDEZ JARED MARTIN",70,50,75,70,100,80,50,65,90,100,100,3.8636363636363633,3.5,7.3636363636363633]
[9,"LUEVANOS ROSALES JUAN PABLO",100,65,60,50,50,100,60,75,80,50,75,3.4772727272727275,1.5,4.9772727272727275]
[10,"MORALES HERNANDEZ RODRIGO",75,75,100,60,60,95,65,100,60,60,60,3.6818181818181821,3,6.6818181818181817]
[11,"VARGAS TORRES OSVALDO",80,80,75,100,70,100,100,90,100,90,90,4.4318181818181817,3,7.4318181818181817]
[12,"VELA HERNANDEZ ANGEL RUBEN",100,90,50,90,100,90,90,75,70,100,50,4.1136363636363633,3.5,7.6136363636363633]
[]
[null,null,null,null,"Promedio de Tareas:",null,{"$f":"AVERAGE(Tareas)","v":4.020833333333333}]
[null,null,null,null,"Promedio de Examen:",null,{"$f":"AVERAGE(Examen)","v":2.75}]
[null,null,null,null,"Promedio de Calificación:",null,{"$f":"AVERAGE(Calificacion)","v":6.770833333333333}]
[null,null,null,null,"Calificación Máxima:",null,{"$f":"MAX(Calificacion)","v":7.8863636363636367}]
[null,null,null,null,"Calificación Mínima:",null,{"$f":"MIN(Calificacion)","v":4.795454545454545}]
[]
[null,"Aquí mostramos los avances del grupo en cada tarea (Estados Dinámicos)"]
[null,"Terminado: Todo el gurpo a completo la tarea"]
[null,"En proceso: Algunos faltan de terminar la tarea"]
[null,"Por hacer: Nadie a empezado la tarea"]
[]
[null,"TAREAS","AVANCES"]
[null,"Ejercicio: Extiende sucesiones aritméticas","Terminado"]
[null,"Ejercicio: Usa fórmulas de sucesiones aritméticas","En proceso"]
[null,"Ejercicio: Fórmulas recursivas para sucesiones aritméticas","Por hacer"]
[null,"Ejercicio: Fórmulas explícitas para sucesiones aritméticas","Terminado"]
[null,"Ejercicio: Extiende sucesiones geométricas","Por hacer"]
[null,"Ejercicio: Extiende sucesiones geométricas: negativas y fracciones","En proceso"]
[null,"Ejercicio: Usa fórmulas de sucesiones geométricas","Por hacer"]
[null,"Ejercicio: La pendiente a partir de una gráfica","Terminado"]
[null,"Ejercicio: Gráficar a partir de la pendiente","Por hacer"]
[null,"Ejercicio: Pendiente en una tabla","Terminado"]
[null,"Ejercicio: La pendiente a partir de dos puntos","En proceso"]
[]
[null,"Aquí se muestran que tarea terminaron primero cada alumno (Segmentación de Datos)"]
[]
[null,"Nombre del Alumno","T. Terminada"]
[null,"ALVAREZ AREVALO ANGEL SANTIAGO","Tarea 1"]
[null,"CABRALES DE LEON MARIA JOCELYN","Tarea 3"]
[null,"CHAVEZ URISTA YAHIR","Tarea 2"]
[null,"CISNEROS ROJAS ANGEL EMMANUEL","Tarea 3"]
[null,"GARCIA RODRIGUEZ DIEGO CLEMENTINO","Tarea 1"]
[null,"GONZALEZ SANCHEZ ESCARLETH GUADALUPE","Tarea 3"]
[null,"GUTIERREZ ZAPATA KIMBERLY JANNET","Tarea 2"]
[null,"HERNANDEZ JARED MARTIN","Tarea 1"]
[null,"LUEVANOS ROSALES JUAN PABLO","Tarea 3"]
[null,"MORALES HERNANDEZ RODRIGO","Tarea 2"]
[null,"VARGAS TORRES OSVALDO","Tarea 3"]
[null,"VELA HERNANDEZ ANGEL RUBEN","Tarea 1"]
[]
[]
[null,"A continuación tenemos dos MACROS, una hace una copia de la Tabla original pero sin datos para capturar nuevas tareas"]
[null,"La otra Macro elimina la copia realizada"]

{"sheet":"Calificaciones","index":1,"n_rows":16,"n_cols":2,"rows_kept":16,"cut":false,"hidden":false,"merged":[]}
[]
[]
["Nombre del Alumno","Calificación Final"]
["ALVAREZ AREVALO ANGEL SANTIAGO",7.8863636363636367]
["CABRALES DE LEON MARIA JOCELYN",7.1363636363636367]
["CHAVEZ URISTA YAHIR",6.3636363636363633]
["CISNEROS ROJAS ANGEL EMMANUEL",7.25]
["GARCIA RODRIGUEZ DIEGO CLEMENTINO",4.795454545454545]
["GONZALEZ SANCHEZ ESCARLETH GUADALUPE",6.2727272727272725]
["GUTIERREZ ZAPATA KIMBERLY JANNET",7.4772727272727275]
["HERNANDEZ JARED MARTIN",7.3636363636363633]
["LUEVANOS ROSALES JUAN PABLO",4.9772727272727275]
["MORALES HERNANDEZ RODRIGO",6.6818181818181817]
["VARGAS TORRES OSVALDO",7.4318181818181817]
["VELA HERNANDEZ ANGEL RUBEN",7.6136363636363633]
["Promedio",6.770833333333333]

{"sheet":"Tareas","index":2,"n_rows":16,"n_cols":2,"rows_kept":16,"cut":false,"hidden":false,"merged":[]}
[]
[]
["Nombre del Alumno","Tareas"]
["ALVAREZ AREVALO ANGEL SANTIAGO",4.3863636363636367]
["CABRALES DE LEON MARIA JOCELYN",4.1363636363636367]
["CHAVEZ URISTA YAHIR",4.3636363636363633]
["CISNEROS ROJAS ANGEL EMMANUEL",4.25]
["GARCIA RODRIGUEZ DIEGO CLEMENTINO",3.7954545454545454]
["GONZALEZ SANCHEZ ESCARLETH GUADALUPE",3.7727272727272725]
["GUTIERREZ ZAPATA KIMBERLY JANNET",3.9772727272727275]
["HERNANDEZ JARED MARTIN",3.8636363636363633]
["LUEVANOS ROSALES JUAN PABLO",3.4772727272727275]
["MORALES HERNANDEZ RODRIGO",3.6818181818181821]
["VARGAS TORRES OSVALDO",4.4318181818181817]
["VELA HERNANDEZ ANGEL RUBEN",4.1136363636363633]
["Promedio",4.020833333333333]

{"sheet":"Examen","index":3,"n_rows":16,"n_cols":2,"rows_kept":16,"cut":false,"hidden":false,"merged":[]}
[]
[]
["Nombre del Alumno","Examen"]
["ALVAREZ AREVALO ANGEL SANTIAGO",3.5]
["CABRALES DE LEON MARIA JOCELYN",3]
["CHAVEZ URISTA YAHIR",2]
["CISNEROS ROJAS ANGEL EMMANUEL",3]
["GARCIA RODRIGUEZ DIEGO CLEMENTINO",1]
["GONZALEZ SANCHEZ ESCARLETH GUADALUPE",2.5]
["GUTIERREZ ZAPATA KIMBERLY JANNET",3.5]
["HERNANDEZ JARED MARTIN",3.5]
["LUEVANOS ROSALES JUAN PABLO",1.5]
["MORALES HERNANDEZ RODRIGO",3]
["VARGAS TORRES OSVALDO",3]
["VELA HERNANDEZ ANGEL RUBEN",3.5]
["Promedio",2.75]